Cogmind - Beta 10.2 @@@ ROGUE MODE // 2021.08.13 @ 16:04:21 Player: Coronach Result: Destroyed by P-70 Sage with Tesla Rifle Performance ------------- Evolutions (5) 2500 Regions Visited (18) 3600 Robots Destroyed (309) 1545 Value Destroyed (11859) 11859 Prototype IDs (44) 880 Alien Tech Used (0) 0 Bonus (5476) 5476 TOTAL SCORE: 25860 Bonus ------- High Alert Combat Kills 1829 Follower Combat Kills 810 Entered Garrisons 800 Used RIF Installer 2000 Aligned with FarCom 300 Friendly Fire -263 Cogmind --------- Core Integrity 0/1000 Matter 221/300 Energy 795/795 System Corruption 18% Temperature Cool (0) Movement Walking (150) Ox1 Location -5/Factory Parts ------- > --- POWER (1) -------- Fusion Reactor > --- PROPULSION (4) --- Flexi-carbon Leg Flexi-carbon Leg Flexi-carbon Leg Flexi-carbon Leg > --- UTILITY (10) ----- Advanced Heat Sink High-capacity Storage Unit High-capacity Storage Unit Energy Well Experimental Signal Interpreter Improved Weapon Cycler Advanced Hacking Suite Relay Coupler [NC] (29) Relay Coupler [Duelist] (19) > --- WEAPON (2) ------- Gauss Rifle > --- INVENTORY (20) --- Fusion Reactor Flexi-carbon Leg Flexi-carbon Leg Matter Compressor (250) Advanced ECM Suite Phase Shifter Improved Remote Force Field Point Defense System Heavy Shock Bomb Launcher Tesla Bomb Launcher Long-range Missile Launcher Improved Remote Datajack Falx Segregator Peak State ------------ > --- POWER ------------ Neutrino Core > --- PROPULSION ------- Enhanced Flexi-carbon Leg Enhanced Flexi-carbon Leg Enhanced Flexi-carbon Leg Enhanced Armored Leg > --- UTILITY ---------- Advanced Heat Sink High-capacity Storage Unit High-capacity Storage Unit Experimental Signal Interpreter Improved Kinecellerator Makeshift Transmission Jammer Layered Light Armor Plating Advanced Hacking Suite Relay Coupler [NC] Advanced Field Recycling Unit > --- WEAPON ----------- Advanced Plasma Cannon Hypervelocity Gauss Cannon > --- INVENTORY -------- Neutrino Core Advanced Heat Sink Energy Well Improved Terrain Scanner Advanced Salvage Targeting Computer Advanced ECM Suite Makeshift Cloaking Device Makeshift System Shield Improved Recalibrator Advanced Drone Bay Decoy Drone Bay Heavy Ion Cannon Advanced Plasma Cannon Heavy Shock Bomb Launcher Long-range Missile Launcher Improved Remote Datajack Falx [Rating: 96] Favorites ----------- Power Neutrino Core Engine Angular Momentum Engine Power Core Neutrino Core Reactor Antimatter Reactor Propulsion Compact Wheel Treads Light Treads Leg Flexi-carbon Leg Wheel Compact Wheel Hover Unit Improved Hover Unit Flight Unit VTOL Module Utility High-capacity Storage Unit Device Advanced Heat Sink Storage High-capacity Storage Unit Processor Experimental Signal Interpreter Hackware Relay Coupler [NC] Protection Improved Medium Armor Plating Weapon Falx Energy Gun Plasma Rifle Energy Cannon Guided Plasma Cannon Ballistic Gun KE Penetrator Ballistic Cannon Gauss Cannon Launcher Grenade Launcher Special Weapon Remote Datajack Slashing Weapon Falx Build | -11 -10 -10 -10 -9 -8 -8 -7 -7 -6 -6 -6 -6 -6 -6 -5 -5 -5 -5 ------- Run | Scr Mat Min Exi Min Mat Gar Fac Gar Fac Gar Fac Low Low Zio Pro Fac Gar Fac Slots Evolved 10 | . . . . . 4 . 2 . 2 . . . . . . 2 . . Power . | . . . . . . . . . . . . . . . . . . . Propulsion 2 | . . . . . . . . . 1 . . . . . . 1 . . Utility 8 | . . . . . 4 . 2 . 1 . . . . . . 1 . . Weapon . | . . . . . . . . . . . . . . . . . . . Parts Attached 539 | 3 4 3 3 . 26 3 2 16 57 68 29 8 21 95 18 53 61 69 Power 26 | . 2 . . . . . . 1 2 2 2 . 1 7 . 3 3 3 Engine 15 | . 2 . . . . . . 1 2 1 2 . 1 4 . 1 1 . Core 7 | . . . . . . . . . . 1 . . . 3 . 2 1 . Reactor 4 | . . . . . . . . . . . . . . . . . 1 3 Propulsion 58 | 2 1 . 1 . . . . . 2 6 2 1 . 15 . 6 10 12 Treads 8 | 1 1 . 1 . . . . . . . . . . 3 . . 1 1 Leg 34 | . . . . . . . . . . 3 . . . 12 . 6 2 11 Wheel 12 | 1 . . . . . . . . 2 3 2 1 . . . . 3 . Hover 2 | . . . . . . . . . . . . . . . . . 2 . Flight 2 | . . . . . . . . . . . . . . . . . 2 . Utility 228 | 1 1 . 1 . 14 3 2 12 22 26 10 2 2 37 12 28 31 24 Device 148 | 1 . . . . 12 2 1 10 10 13 5 1 . 28 10 19 22 14 Storage 17 | . 1 . 1 . . . . . 3 1 . . . 2 . . 6 3 Processor 9 | . . . . . . . . . 2 . 1 . 1 1 . 1 2 1 Hackware 19 | . . . . . 1 . 1 . 2 1 3 1 1 . . 4 1 4 Protection 35 | . . . . . 1 1 . 2 5 11 1 . . 6 2 4 . 2 Artifact . | . . . . . . . . . . . . . . . . . . . Weapon 227 | . . 3 1 . 12 . . 3 31 34 15 5 18 36 6 16 17 30 Energy Gun 15 | . . . . . 1 . . 1 1 . . . . 4 2 2 . 4 Energy Cannon 76 | . . . . . 3 . . 1 15 13 6 1 8 9 1 6 3 10 Ballistic Gun 17 | . . . . . 1 . . . . . 1 . 2 5 . 1 4 3 Ballistic Cannon 23 | . . . . . 1 . . . 4 8 . . . 3 1 2 4 . Launcher 46 | . . 2 . . 3 . . 1 3 11 1 2 4 6 1 1 4 7 Special Weapon 31 | . . 1 1 . 3 . . . 8 . 5 2 3 2 . 2 . 4 Impact Weapon . | . . . . . . . . . . . . . . . . . . . Slashing Weapon 19 | . . . . . . . . . . 2 2 . 1 7 1 2 2 2 Piercing Weapon . | . . . . . . . . . . . . . . . . . . . Special Melee Weapon . | . . . . . . . . . . . . . . . . . . . Unidentified Prototypes 11 | . . . . . 3 . . . 2 . 2 . . 1 . 1 . 2 Parts Lost 88 | . . 1 . . . . . . 2 6 4 . 1 24 . 7 22 21 Power 8 | . . . . . . . . . . 2 . . . 1 . 2 2 1 Propulsion 19 | . . . . . . . . . . 2 . . . 4 . . 8 5 Utility 42 | . . . . . . . . . 2 2 4 . 1 13 . 4 7 9 Weapon 19 | . . 1 . . . . . . . . . . . 6 . 1 5 6 Highest Loss Streak 11 | . . 1 . . . . . . 1 2 4 . 1 6 . 4 11 6 Average Slot Usage (%) 96 | . 100 98 100 100 90 90 92 91 95 93 97 97 98 97 99 97 95 92 Engine 5 | . 14 14 14 14 9 9 7 7 6 5 4 6 6 2 . 2 2 . Core 1 | . . . . . . . . . . . 1 . . 3 6 2 1 . Treads 4 | . 14 14 14 14 9 9 7 7 6 2 . . . 4 6 . . . Leg 6 | . . . . . . . . . . 2 . . . 11 13 22 4 13 Wheel 7 | . 14 14 14 14 9 9 7 7 13 14 20 20 20 2 . . 4 5 Device 20 | . 14 14 14 14 27 21 30 32 33 21 18 13 18 13 30 21 21 12 Storage 11 | . 14 14 14 14 9 9 7 7 7 8 13 13 13 13 13 11 11 13 Processor 5 | . . . . . . . . . 4 6 6 6 7 11 7 5 10 5 Hackware 8 | . . . . . 8 9 15 5 2 5 12 17 16 9 . 13 11 16 Protection 4 | . . . . . . 5 . 7 5 9 6 6 2 7 6 2 . 3 Energy Cannon 3 | . . . . . 5 9 7 5 6 6 2 5 7 2 2 2 2 2 Ballistic Gun 2 | . 28 . . . 1 . . . . . . . . 2 . 1 3 . Ballistic Cannon 2 | . . . . . . 9 7 7 2 2 . . . 3 1 . 2 . Launcher 1 | . . 12 14 14 4 . . . . 1 . 1 1 . . . . 1 Special Weapon 1 | . . 13 14 14 3 . . . 2 . 4 5 2 . . 1 . 2 Slashing Weapon 1 | . . . . . . . . . . 1 5 . 1 1 4 1 1 . Naked Turns . | . . . . . . . . . . . . . . . . . . . Heaviest Build 133 | 13 27 28 44 44 76 73 73 91 92 101 110 96 91 119 125 128 133 124 Greatest Support 104 | 20 20 20 20 20 20 20 16 20 32 50 36 36 36 60 32 104 104 80 Greatest Overweight (x) 28 | . 1 1 2 2 4 4 4 5 4 7 3 2 2 6 5 2 28 10 Average Overweight (x) 2 | . . 1 1 2 3 3 4 4 2 2 2 2 1 2 3 . 2 2 Largest Inventory Capacity 20 | 6 10 10 12 12 12 12 12 12 12 18 18 18 18 20 20 20 20 20 Average Capacity 16 | 6 9 10 11 12 12 12 12 12 12 14 18 18 18 19 20 20 19 20 Most Carried 20 | 5 10 10 10 11 12 12 12 12 12 18 18 18 18 20 20 20 20 20 Average Carried 14 | 2 7 9 9 10 11 10 10 11 11 12 17 17 17 18 19 18 16 16 Final Capacity 20 | 6 10 10 12 12 12 12 12 12 12 18 18 18 18 20 20 20 20 20 Final Carried 20 | 2 10 10 10 11 12 12 12 12 11 18 18 17 18 20 20 17 20 14 Class Distribution -------------------- 35% | Scavenger-Mutant 35% | Mutant 11% | Bothacker-Mutant 9% | Scavenger-Assassin 4% | Hauler-Mutant Dominant Class ---------------- Mutant | -10/Materials Mutant | -10/Mines Mutant | -10/Exiles Mutant | -9/Mines Mutant | -8/Materials Mutant | -8/Garrison Mutant | -7/Factory Mutant | -7/Garrison Mutant | -6/Factory Mutant | -6/Garrison Bothacker-Mutant | -6/Factory Bothacker-Mutant | -6/Lower Caves Bothacker-Mutant | -6/Lower Caves Scavenger-Mutant | -6/Zion Scavenger-Assassin | -5/Proximity Caves Scavenger-Mutant | -5/Factory Scavenger-Mutant | -5/Garrison Scavenger-Mutant | -5/Factory Resources | -11 -10 -10 -10 -9 -8 -8 -7 -7 -6 -6 -6 -6 -6 -6 -5 -5 -5 -5 ----------- Run | Scr Mat Min Exi Min Mat Gar Fac Gar Fac Gar Fac Low Low Zio Pro Fac Gar Fac Matter Collected 9995 | 261 575 132 . . 438 100 . 250 745 1058 266 140 321 2420 97 762 1098 1332 Remotely . | . . . . . . . . . . . . . . . . . . . Salvage Created 10564 | 60 443 133 . . 249 191 . 870 834 1257 117 60 498 2092 136 975 1069 1580 Parts 513 | 5 40 12 . . 14 12 . 47 22 37 4 3 24 149 10 44 41 49 Haulers Intercepted 3 | . 1 . . . . . . . . . . . . . . . . 2 Recyclers Shooed 7 | 2 2 . . . . . . . 2 . . . . . . . . 1 Parts Field Recycled 25 | . . . . . . . . . . . . . . . . 25 . . Retrieved Matter 532 | . . . . . . . . . . . . . . . . 532 . . Parts Self-Destructed 23 | . . . . . . . . . . . . 7 14 . 2 . . . Prevented 3 | . . . . . . . . . . . . . 3 . . . . . Kills | -11 -10 -10 -10 -9 -8 -8 -7 -7 -6 -6 -6 -6 -6 -6 -5 -5 -5 -5 ------- Run | Scr Mat Min Exi Min Mat Gar Fac Gar Fac Gar Fac Low Low Zio Pro Fac Gar Fac Combat Hostiles Destroyed 183 | . 12 9 . . 5 4 . 24 15 20 . 1 9 10 9 21 21 23 Melee 4 | . . . . . . . . . . . . . . . . 4 . . Guns 26 | . 12 . . . . . . . . . . . . 2 . 1 6 5 Cannons 71 | . . . . . 4 4 . 20 7 9 . 1 3 6 . 4 9 4 AOE 65 | . . 9 . . 1 . . 3 7 5 . . 6 2 9 9 6 8 Classes Destroyed 22 | 2 5 . . . 2 . . 3 2 . . . 1 5 . 1 1 . Worker 2 | . . . . . . . . . . . . . . . . 1 . 1 Builder 2 | . 1 . . . . . . . . . . . . . . 1 . . Tunneler 3 | 1 . . . . . . . . . . . . . . . 2 . . Hauler 3 | . 1 . . . . . . . . . . . . . . . . 2 Recycler 3 | 1 . . . . . . . . 1 . 1 . . . . . . . Mechanic 1 | . . . . . . . . . 1 . . . . . . . . . Watcher 6 | . 2 . . . 1 1 . . 1 . . . . . . . . 1 Swarmer 49 | . 6 6 . . . . . . 3 1 . . 7 . 9 4 13 . Saboteur 7 | . . . . . . . . 7 . . . . . . . . . . Grunt 64 | . 6 3 . . 2 1 . 13 8 12 . 1 . . . 6 . 12 Brawler 1 | . . . . . . . . 1 . . . . . . . . . . Duelist 3 | . . . . . . . . . 1 1 . . 1 . . . . . Protector 1 | . . . . . . . . . . . . . . . . . 1 . Sentry 18 | . . . . . 2 2 . 2 2 4 . . . . . 3 3 . Demolisher 1 | . . . . . . . . . . . . . . . . . 1 . Hunter 13 | . . . . . 1 1 . . . . . . . . . 2 2 7 Programmer 14 | . . . . . . . . 1 1 2 . . . . . 6 1 3 Behemoth 1 | . . . . . . . . . . . . . . . . . . 1 Zionite 104 | . . . . . . . . . . . . . . 104 . . . . Tinkerer 4 | . . . . . . . . . . . . . . 4 . . . . Master Thief 2 | . . . . . . . . . . . . . 2 . . . . . Surgeon 1 | . . . . . . . . . . . . . . 1 . . . . Butcher 1 | . . . . . . . . . . . . . . 1 . . . . Martyr 1 | . . . . . . . . . . . . . . 1 . . . . Marauder 1 | . . . . . . . . . . . . . . 1 . . . . Mutant 6 | . . . . . . . . . . . . . . 6 . . . . Best Kill Streak 9 | 1 5 3 . . 2 3 . 4 4 4 1 1 4 9 5 9 9 8 Combat Bots Only 9 | . 3 3 . . 1 3 . 4 4 4 . 1 4 2 5 8 9 6 Max Kills in Single Turn 6 | 1 1 3 . . 1 1 . 2 3 2 1 1 3 2 4 4 6 2 Gunslinging . | . . . . . . . . . . . . . . . . . . . Exploded 6 | . . 3 . . 1 . . 2 3 2 . . 3 1 4 4 6 1 Melee 1 | . . . . . . . . . . . . . . . . 1 . . Uniques/NPCs Destroyed 1 | . . . . . . . . . . . . . . 1 . . . . Imprinter (-6/Zion) Combat | -11 -10 -10 -10 -9 -8 -8 -7 -7 -6 -6 -6 -6 -6 -6 -5 -5 -5 -5 -------- Run | Scr Mat Min Exi Min Mat Gar Fac Gar Fac Gar Fac Low Low Zio Pro Fac Gar Fac Damage Taken 16696 | . 366 185 . . 132 234 . 169 1061 1407 473 117 334 3544 171 2708 2547 3248 Core 1707 | . 88 20 . . . . . 21 74 59 26 . 44 358 . 214 397 406 Absorbed by Shields . | . . . . . . . . . . . . . . . . . . . Core Remaining (%) 77 | 100 . . . 56 . 100 . 97 . . . . . . 34 . . . Volleys Fired 1133 | 16 53 13 . . 22 34 5 77 99 109 7 12 17 350 35 85 92 107 Largest 2 | 2 2 2 . . 2 1 1 1 2 2 1 1 2 2 1 2 2 2 Hottest 180 | 40 40 100 . . 145 120 120 120 180 130 69 90 180 159 120 163 163 179 Shots Fired 1556 | 32 106 16 . . 24 34 5 76 122 138 7 12 22 484 34 120 154 170 Gun 533 | 32 106 4 . . 2 . . . . . . . . 222 . 28 57 82 Cannon 866 | . . . . . 15 34 5 74 96 121 2 5 16 248 31 84 94 41 Launcher 91 | . . 10 . . . . . 2 7 17 . . 5 13 3 2 3 29 Special 66 | . . 2 . . 7 . . . 19 . 5 7 1 1 . 6 . 18 Kinetic 642 | 32 106 4 . . . 10 . 7 28 41 . . . 275 . 25 81 33 Thermal 666 | . . 2 . . 22 24 5 67 55 47 . 5 16 188 31 79 70 55 Explosive 54 | . . 10 . . . . . 2 6 5 . . . 13 3 2 2 11 Electromagnetic 137 | . . . . . 2 . . . 14 45 2 . 5 7 . 8 1 53 Robot Hit Streak 38 | 5 9 2 . . 10 11 . 22 30 20 10 5 5 38 4 8 11 18 Robot Miss Streak 8 | 3 8 2 . . 3 1 . 3 3 2 1 1 5 6 4 3 5 3 Penetration Max 1 | . . . . . . . . . 1 . . . . . . . . 1 Secondary Targets 8 | . 4 . . . . . . . . . . . . 2 . . . 2 Max Gunslinging Chain 1 | . 1 . . . . . . . . . . . . 1 . . . 1 Shots Hit Robots 918 | 20 59 5 . . 9 11 . 29 60 67 6 9 13 343 2 80 93 112 Core Hits 486 | 4 26 12 . . 8 6 . 27 28 36 1 1 13 168 14 54 34 54 Critical Hits 29 | . . . . . . 1 . 2 2 . . . 2 4 . 2 12 4 Critical Kills 9 | . . . . . . 1 . 2 . . . . 1 . . 1 4 . Critical Parts Destroyed 18 | . . . . . . . . . 2 . . . 1 4 . 1 6 4 Melee Attacks 59 | . . . . . . . . . . 7 4 . 4 3 5 23 12 1 Impact . | . . . . . . . . . . . . . . . . . . . Slashing 59 | . . . . . . . . . . 7 4 . 4 3 5 23 12 1 Piercing . | . . . . . . . . . . . . . . . . . . . Sneak Attacks 4 | . . . . . . . . . . . 1 . . . . 2 . 1 Combat Hostiles . | . . . . . . . . . . . . . . . . . . . Follow-up Attacks . | . . . . . . . . . . . . . . . . . . . Damage Inflicted 35906 | 245 693 695 . . 541 605 . 2124 2513 3729 148 218 1070 11372 477 4104 3305 4067 Guns 6265 | 245 693 . . . 24 . . . . . . . . 2936 . 385 615 1367 Cannons 18195 | . . . . . 397 605 . 1867 1559 2407 31 218 236 7120 . 1695 1380 680 Explosions 8551 | . . 695 . . 96 . . 257 954 833 . . 323 1189 477 1274 577 1876 Melee 2871 | . . . . . . . . . . 489 117 . 511 127 . 750 733 144 Ramming . | . . . . . . . . . . . . . . . . . . . Kinetic 8839 | 245 693 . . . . 218 . 135 395 934 . . . 4269 . 349 875 726 Thermal 14322 | . . . . . 517 387 . 1732 762 890 . 218 313 5636 . 1788 1120 959 Explosive 5795 | . . 695 . . . . . 257 793 164 . . . 1189 477 1085 513 622 Electromagnetic 4079 | . . . . . 24 . . . 563 1252 31 . 246 151 . 132 64 1616 Impact . | . . . . . . . . . . . . . . . . . . . Slashing 2871 | . . . . . . . . . . 489 117 . 511 127 . 750 733 144 Piercing . | . . . . . . . . . . . . . . . . . . . Highest Corruption 18 | . . . . . . . . . 2 2 3 3 3 13 . 9 11 18 Average Corruption 6 | . . . . . . . . . 1 2 2 3 3 5 . 6 10 12 Corruption Purged 16 | . . . . . . . . . . . . . . 16 . . . . Effects 474 | . . . . . . . . . 5 23 7 18 13 119 . 75 139 75 Message Errors 89 | . . . . . . . . . 1 9 1 9 4 26 . 11 14 14 Matter Fused 84 | . . . . . . . . . . . 3 4 5 19 . 18 24 11 Heat Flow Errors 50 | . . . . . . . . . . 3 2 2 2 16 . 10 12 3 Energy Discharges 39 | . . . . . . . . . . 6 1 1 1 6 . 9 12 3 Parts Rejected 3 | . . . . . . . . . . . . . . 1 . . 1 1 Data Loss (minor) 42 | . . . . . . . . . 2 1 . 2 1 7 . 12 14 3 Data Loss (major) 14 | . . . . . . . . . . . . . . 4 . 1 5 4 Misfires 17 | . . . . . . . . . . . . . . 5 . 2 8 2 Alerts 3 | . . . . . . . . . . . . . . . . . 2 1 Misdirections 24 | . . . . . . . . . . . . . . 2 . . 15 7 Targeting Errors 91 | . . . . . . . . . 2 3 . . . 28 . 12 25 21 Weapon Failures 18 | . . . . . . . . . . 1 . . . 5 . . 7 5 Overload Shots 80 | . . . . . . . . . . . . 5 1 74 . . . . Effects 5 | . . . . . . . . . . . . . 1 4 . . . . Energy Bleed 1 | . . . . . . . . . . . . . . 1 . . . . Heat Surge 2 | . . . . . . . . . . . . . . 2 . . . . Short Circuit 2 | . . . . . . . . . . . . . 1 1 . . . . Overflow Damage 1369 | . . 81 . . 18 31 . 83 92 90 . 6 123 406 18 260 42 119 Projectiles 671 | . . . . . 18 31 . 76 43 63 . 6 3 365 . 33 15 18 Explosions 358 | . . 81 . . . . . 7 49 10 . . 2 1 18 89 . 101 Melee 340 | . . . . . . . . . . 17 . . 118 40 . 138 27 . Knockbacks 37 | . . . . . . . . . 1 . . . . 34 . 2 . . Impact . | . . . . . . . . . . . . . . . . . . . Kinetic 37 | . . . . . . . . . 1 . . . . 34 . 2 . . Secondary . | . . . . . . . . . . . . . . . . . . . Self-Inflicted Damage 797 | . . 26 . . 24 . . 21 183 46 . . . 26 43 111 11 306 Shots 25 | . . 1 . . 1 . . 1 5 2 . . . 1 2 2 1 9 Rammed . | . . . . . . . . . . . . . . . . . . . Targets Rammed . | . . . . . . . . . . . . . . . . . . . Kicked . | . . . . . . . . . . . . . . . . . . . Crushed . | . . . . . . . . . . . . . . . . . . . Highest Temperature 425 | . 16 48 . . 186 216 72 200 190 196 184 189 142 425 222 257 265 357 Average Temperature 86 | . 8 14 . . 54 85 33 96 38 61 51 68 58 110 69 78 84 93 Received Heat Transfer 2465 | . 135 51 . . 54 108 . 63 261 417 . 42 . 323 . 243 117 651 Effects 16 | . . . . . . . . . . . . . . 15 . . . 1 Shutdowns 1 | . . . . . . . . . . . . . . . . . . 1 Energy Bleed 3 | . . . . . . . . . . . . . . 3 . . . . Interference 11 | . . . . . . . . . . . . . . 11 . . . . Short Circuit 1 | . . . . . . . . . . . . . . 1 . . . . Siege Activations . | . . . . . . . . . . . . . . . . . . . Robots Corrupted 14 | . . . . . . . . . 1 6 . . . . . . . 7 Combat Hostiles 13 | . . . . . . . . . 1 6 . . . . . . . 6 Parts Fried 24 | . . . . . . . . . 2 7 . . . . . 1 . 14 Impact Corruptions . | . . . . . . . . . . . . . . . . . . . Robots Melted 6 | . . . . . . . . 1 . . . . . 2 . 3 . . Combat Hostiles 4 | . . . . . . . . 1 . . . . . . . 3 . . Parts Melted 46 | . . 1 . . 1 1 . 6 . 5 . . 1 9 . 15 6 1 Heat Transferred 21914 | . . . . . 1030 880 . 4000 870 1278 . 200 374 7713 . 2417 1527 1625 Parts Sabotaged 1 | . . . . . . . . 1 . . . . . . . . . . Parts Stolen 2 | . . . . . . . . . . . . . 2 . . . . . Parts Stripped . | . . . . . . . . . . . . . . . . . . . Power Chain Reactions 7 | . . . . . 1 . . . 1 1 . . 1 . . 1 . 2 Missiles Intercepted . | . . . . . . . . . . . . . . . . . . . Alert | -11 -10 -10 -10 -9 -8 -8 -7 -7 -6 -6 -6 -6 -6 -6 -5 -5 -5 -5 ------- Run | Scr Mat Min Exi Min Mat Gar Fac Gar Fac Gar Fac Low Low Zio Pro Fac Gar Fac Peak Influence 1411 | 10 258 254 . . 281 246 133 1046 820 1411 742 . . . . 505 724 889 Initial 740 | . 6 5 . . . 85 128 93 548 508 740 . . . . 72 353 380 Average 498 | 3 128 144 . . 84 201 129 682 699 1031 664 . . . . 175 600 613 Maximum Alert Level 4 | . 1 1 . . 1 1 . 3 3 4 3 . . . . 2 3 3 Low Security (%) 27 | 100 70 87 . 100 80 38 100 4 . . . . . . . 58 . . Level 1 14 | . 29 12 . . 19 61 . 10 . . . . . . . 28 8 12 Level 2 29 | . . . . . . . . 37 32 16 40 . . . . 12 87 49 Level 3 22 | . . . . . . . . 46 67 45 59 . . . . . 4 38 Level 4 5 | . . . . . . . . . . 38 . . . . . . . . Level 5 . | . . . . . . . . . . . . . . . . . . . High Security . | . . . . . . . . . . . . . . . . . . . Max Security . | . . . . . . . . . . . . . . . . . . . Squads Dispatched 27 | . 2 . . . . . . . 8 . 2 . . . . 5 . 10 Investigation 3 | . 2 . . . . . . . 1 . . . . . . . . . Extermination 11 | . . . . . . . . . 3 . 2 . . . . 4 . 2 Reinforcement 10 | . . . . . . . . . 3 . . . . . . 1 . 6 Assault 3 | . . . . . . . . . 1 . . . . . . . . 2 Garrison . | . . . . . . . . . . . . . . . . . . . Intercept . | . . . . . . . . . . . . . . . . . . . Construction Impeded 3 | . . . . . . . . . . . . . . . . . . 3 Haulers Reinforced 3 | . . . . . . . . . . . . . . . . 1 . 2 Stealth | -11 -10 -10 -10 -9 -8 -8 -7 -7 -6 -6 -6 -6 -6 -6 -5 -5 -5 -5 --------- Run | Scr Mat Min Exi Min Mat Gar Fac Gar Fac Gar Fac Low Low Zio Pro Fac Gar Fac Distress Signals 3 | . 1 . . . 1 . . . 1 . . . . . . . . . Communications Jammed 8 | . . . . . . . . . . . . . . . . 8 . . Distress Signals 8 | . . . . . . . . . . . . . . . . 8 . . Times Spotted 383 | . 23 14 . . 9 6 . 21 24 28 3 8 16 133 8 30 21 39 Peak Tracking Total 8 | . 4 3 . . 3 3 . 4 5 4 2 7 5 4 5 8 7 8 Tactical Retreats 27 | . 2 . . . 1 . . 3 2 2 . . . 9 . 1 2 5 Traps | -11 -10 -10 -10 -9 -8 -8 -7 -7 -6 -6 -6 -6 -6 -6 -5 -5 -5 -5 ------- Run | Scr Mat Min Exi Min Mat Gar Fac Gar Fac Gar Fac Low Low Zio Pro Fac Gar Fac Traps Triggered 13 | . 2 . . . . 1 . 2 . 6 1 . . . . . 1 . Indirectly 3 | . . . . . . . . . . 3 . . . . . . . . Trap Hack Attempts . | . . . . . . . . . . . . . . . . . . . Triggered . | . . . . . . . . . . . . . . . . . . . Disarmed 6 | . . . . . 6 . . . . . . . . . . . . . Reprogrammed . | . . . . . . . . . . . . . . . . . . . Reused . | . . . . . . . . . . . . . . . . . . . Traps Extracted . | . . . . . . . . . . . . . . . . . . . Installed . | . . . . . . . . . . . . . . . . . . . Triggered . | . . . . . . . . . . . . . . . . . . . Machines | -11 -10 -10 -10 -9 -8 -8 -7 -7 -6 -6 -6 -6 -6 -6 -5 -5 -5 -5 ---------- Run | Scr Mat Min Exi Min Mat Gar Fac Gar Fac Gar Fac Low Low Zio Pro Fac Gar Fac Machines Disabled 50 | . . 3 . . 1 1 . 10 8 9 . . . 1 . 5 1 11 Max in Single Turn 4 | . . 1 . . 1 1 . 2 4 2 . . . 1 . 2 1 4 Garrison Relay 8 | . . . . . . 1 . 3 . 3 . . . . . . 1 . Phase Generator 2 | . . . . . . . . 1 . 1 . . . . . . . . Machines Sabotaged . | . . . . . . . . . . . . . . . . . . . Garrisons Compromised . | . . . . . . . . . . . . . . . . . . . Overloaded Fab Kills . | . . . . . . . . . . . . . . . . . . . Fab Network Shutdowns . | . . . . . . . . . . . . . . . . . . . Hacking | -11 -10 -10 -10 -9 -8 -8 -7 -7 -6 -6 -6 -6 -6 -6 -5 -5 -5 -5 --------- Run | Scr Mat Min Exi Min Mat Gar Fac Gar Fac Gar Fac Low Low Zio Pro Fac Gar Fac Machines Accessed 41 | . 9 1 1 . 7 . 1 . 8 . 2 . . . . 10 . 2 Terminals 29 | . 7 . . . 5 . . . 5 . 2 . . . . 8 . 2 Fabricators . | . . . . . . . . . . . . . . . . . . . Repair Stations 1 | . . . . . 1 . . . . . . . . . . . . . Recycling Units 4 | . 2 . . . . . . . 2 . . . . . . . . . Scanalyzers 1 | . . . . . . . . . . . . . . . . 1 . . Garrison Access 4 | . . . . . 1 . 1 . 1 . . . . . . 1 . . Total Hacks 139 | . 39 1 1 . 26 . 1 . 23 . 4 . . . . 39 . 5 Successful 84 | . 21 1 1 . 17 . 1 . 12 . 2 . . . . 28 . 1 Failed 55 | . 18 . . . 9 . . . 11 . 2 . . . . 11 . 4 Catastrophic 10 | . 3 . . . . . . . 2 . 1 . . . . 3 . 1 Database Lockouts . | . . . . . . . . . . . . . . . . . . . Manual 80 | . 26 . 1 . 15 . . . 12 . 4 . . 4 . 16 . 2 Terminals 100 | . 31 . . . 19 . . . 12 . 4 . . . . 29 . 5 Fabricators . | . . . . . . . . . . . . . . . . . . . Repair Stations 6 | . . . . . 6 . . . . . . . . . . . . . Recycling Units 18 | . 8 . . . . . . . 10 . . . . . . . . . Scanalyzers 8 | . . . . . . . . . . . . . . . . 8 . . Garrison Access 5 | . . . . . 1 . 1 . 1 . . . . . . 2 . . Terminal Hacks 37 | . 12 1 1 . 7 . . . 1 . 1 . . . . 13 . 1 Record 1 | . . . . . . . . . . . . . . . . 1 . . Robot Analysis 1 | . 1 . . . . . . . . . . . . . . . . . Prototype ID Bank 4 | . 2 . . . 1 . . . . . . . . . . 1 . . Open Door 1 | . . 1 . . . . . . . . . . . . . . . . Branch Access Points 2 | . 1 . . . . . . . . . 1 . . . . . . . Emergency Access Points 3 | . . . . . . . . . . . . . . . . 3 . . Terminal Index 3 | . 1 . . . 1 . . . . . . . . . . 1 . . Garrison Index 2 | . . . . . . . . . . . . . . . . 1 . 1 Alert Level 1 | . 1 . . . . . . . . . . . . . . . . . Unreport Threat 1 | . 1 . . . . . . . . . . . . . . . . . Locate Traps 8 | . 2 . . . 3 . . . . . . . . . . 3 . . Disarm Traps 1 | . . . . . 1 . . . . . . . . . . . . . Recall Investigation 1 | . 1 . . . . . . . . . . . . . . . . . Hauler Manifests 2 | . 1 . . . . . . . . . . . . . . 1 . . Zone Layout 5 | . 1 . . . 1 . . . 1 . . . . . . 2 . . EX-Prototype ID Bank 1 | . . . 1 . . . . . . . . . . . . . . . Fabricator Hacks . | . . . . . . . . . . . . . . . . . . . Repair Station Hacks 4 | . . . . . 4 . . . . . . . . . . . . . Scan Component 2 | . . . . . 2 . . . . . . . . . . . . . Repair 2 | . . . . . 2 . . . . . . . . . . . . . Recycling Unit Hacks 2 | . . . . . . . . . 2 . . . . . . . . . Report Inventory 1 | . . . . . . . . . 1 . . . . . . . . . Retrieve Components 1 | . . . . . . . . . 1 . . . . . . . . . Scanalyzer 8 | . . . . . . . . . . . . . . . . 8 . . Insert Component 4 | . . . . . . . . . . . . . . . . 4 . . Analyze 4 | . . . . . . . . . . . . . . . . 4 . . Garrison Access Hacks 5 | . . . . . 1 . 1 . 1 . . . . . . 2 . . Unlock Access 4 | . . . . . 1 . 1 . 1 . . . . . . 1 . . Coupler Status 1 | . . . . . . . . . . . . . . . . 1 . . Unauthorized Hacks 28 | . 9 . . . 5 . . . 8 . 1 . . . . 5 . . Terminals 19 | . 5 . . . 4 . . . 4 . 1 . . . . 5 . . Track 1 | . 1 . . . . . . . . . . . . . . . . . Assimilate 1 | . . . . . . . . . . . . . . . . 1 . . Botnet 13 | . 3 . . . 3 . . . 3 . 1 . . . . 3 . . Operators 4 | . 1 . . . 1 . . . 1 . . . . . . 1 . . Fabricators . | . . . . . . . . . . . . . . . . . . . Repair Stations 1 | . . . . . 1 . . . . . . . . . . . . . Mechanics 1 | . . . . . 1 . . . . . . . . . . . . . Recycling Units 8 | . 4 . . . . . . . 4 . . . . . . . . . Monitor 2 | . 1 . . . . . . . 1 . . . . . . . . . Reject 3 | . 1 . . . . . . . 2 . . . . . . . . . Recyclers 1 | . 1 . . . . . . . . . . . . . . . . . Mask 2 | . 1 . . . . . . . 1 . . . . . . . . . Scanalyzers . | . . . . . . . . . . . . . . . . . . . Garrison Access . | . . . . . . . . . . . . . . . . . . . Data Cores Recovered . | . . . . . . . . . . . . . . . . . . . Used . | . . . . . . . . . . . . . . . . . . . Hacking Detections 38 | . 9 . . . 6 . 1 . 8 . 2 . . . . 10 . 2 Full Trace Events 2 | . 2 . . . . . . . . . . . . . . . . . Feedback Events . | . . . . . . . . . . . . . . . . . . . Feedback Blocked . | . . . . . . . . . . . . . . . . . . . Robot Schematics Acquired . | . . . . . . . . . . . . . . . . . . . Robots Built . | . . . . . . . . . . . . . . . . . . . Matter . | . . . . . . . . . . . . . . . . . . . Time . | . . . . . . . . . . . . . . . . . . . Total Robot Build Rating . | . . . . . . . . . . . . . . . . . . . Part Schematics Acquired 3 | . . . . . . . . . . . . . . . . 3 . . Parts Built . | . . . . . . . . . . . . . . . . . . . Matter . | . . . . . . . . . . . . . . . . . . . Time . | . . . . . . . . . . . . . . . . . . . Total Part Build Rating . | . . . . . . . . . . . . . . . . . . . Parts Repaired 2 | . . . . . 2 . . . . . . . . . . . . . Time 52 | . . . . . 52 . . . . . . . . . . . . . Parts Recycled . | . . . . . . . . . . . . . . . . . . . Recycled Matter . | . . . . . . . . . . . . . . . . . . . Retrieved Matter . | . . . . . . . . . . . . . . . . . . . Retrieved Components 10 | . . . . . . . . . 10 . . . . . . . . . Parts Scanalyzed 4 | . . . . . . . . . . . . . . . . 4 . . Part Schematics Acquired 3 | . . . . . . . . . . . . . . . . 3 . . Parts Damaged 1 | . . . . . . . . . . . . . . . . 1 . . Bothacking | -11 -10 -10 -10 -9 -8 -8 -7 -7 -6 -6 -6 -6 -6 -6 -5 -5 -5 -5 ------------ Run | Scr Mat Min Exi Min Mat Gar Fac Gar Fac Gar Fac Low Low Zio Pro Fac Gar Fac Used RIF Installer 4 | . . . . . . 1 . 1 . 1 . . . . . . 1 . Hotswap 1 | . . . . . . . . 1 . . . . . . . . . . Command Fork 1 | . . . . . . . . . . . . . . . . . 1 . Program Shield 1 | . . . . . . . . . . 1 . . . . . . . . Robots Hacked 23 | . . . . . . . . . 5 . 2 3 1 1 . 3 . 8 Non-combat 14 | . . . . . . . . . 5 . 1 . . . . 3 . 5 Combat 9 | . . . . . . . . . . . 1 3 1 1 . . . 3 Robot Hacks Applied 32 | . . . . . . . . . 10 . 2 3 1 1 . 4 . 11 parse_system 1 | . . . . . . . . . . . . . . 1 . . . . find_fabricator 1 | . . . . . . . . . 1 . . . . . . . . . drop_inventory 2 | . . . . . . . . . 1 . . . . . . 1 . . ignore_parts 2 | . . . . . . . . . . . . . . . . . . 2 find_station 1 | . . . . . . . . . 1 . . . . . . . . . release_backups 1 | . . . . . . . . . . . . . . . . . . 1 deconstruct_bot 3 | . . . . . . . . . 1 . . . . . . . . 2 map_route 3 | . . . . . . . . . 1 . . . . . . 1 . 1 mark_security 2 | . . . . . . . . . 1 . . . . . . 1 . . relay_feed 1 | . . . . . . . . . 1 . . . . . . . . . formatsys_low 7 | . . . . . . . . . 3 . 1 . . . . 1 . 2 formatsys_high 8 | . . . . . . . . . . . 1 3 1 . . . . 3 Relay Couplers Released 29 | . . . . . . 4 . 10 . 11 . . . . . . 4 . Machine Destruction 29 | . . . . . . 4 . 10 . 11 . . . . . . 4 . Attached 14 | . . . . . . . 1 . 2 1 3 1 1 . . 1 1 3 Robots Rewired 2 | . . . . . . . . . . . . 2 . . . . . . Allies Hacked . | . . . . . . . . . . . . . . . . . . . Hacks Repelled . | . . . . . . . . . . . . . . . . . . . Allies | -11 -10 -10 -10 -9 -8 -8 -7 -7 -6 -6 -6 -6 -6 -6 -5 -5 -5 -5 -------- Run | Scr Mat Min Exi Min Mat Gar Fac Gar Fac Gar Fac Low Low Zio Pro Fac Gar Fac Total Allies 28 | . . 5 . . . . . . 5 1 3 5 1 . . 2 . 6 Largest Group 6 | . . 5 4 3 3 . . . 2 2 1 5 6 3 . 1 1 2 Highest-Rated Group 213 | . . 87 56 40 40 . . . 57 79 41 181 213 119 . 26 26 47 Highest-Rated Ally 49 | . . 31 16 16 16 . . . 38 41 41 49 49 49 . 26 26 47 Total Orders 109 | . . . . . 5 4 2 21 12 32 2 2 . 9 . 1 17 2 STAY 15 | . . . . . 2 . . . 3 6 . 1 . 2 . . 1 . FOLLOW 14 | . . . . . 3 . . . 4 4 1 1 . 1 . . . . GUARD 1 | . . . . . . . . . . 1 . . . . . . . . AID 8 | . . . . . . . . . 3 1 1 . . . . 1 . 2 EXPLORE 38 | . . . . . . 2 1 11 2 10 . . . 4 . . 8 . RETURN 33 | . . . . . . 2 1 10 . 10 . . . 2 . . 8 . Ally Attacks 149 | . . 27 . . 11 . . . 3 17 3 9 35 40 . . . 4 Total Damage 3945 | . . 379 . . 123 . . . 193 651 100 355 681 1342 . . . 121 Kills 39 | . . 6 . . 2 . . . . 6 1 4 8 11 . . . 1 Allies Corrupted . | . . . . . . . . . . . . . . . . . . . Allies Melted . | . . . . . . . . . . . . . . . . . . . Field Lobotomies 3 | . . . . . . . . . 2 . 1 . . . . . . . Intel | -11 -10 -10 -10 -9 -8 -8 -7 -7 -6 -6 -6 -6 -6 -6 -5 -5 -5 -5 ------- Run | Scr Mat Min Exi Min Mat Gar Fac Gar Fac Gar Fac Low Low Zio Pro Fac Gar Fac Robot Analysis Total 1 | . 1 . . . . . . . . . . . . . . . . . Derelict Logs Recovered 7 | . . 1 . 1 . . . . . . . 1 3 1 . . . . Drone Launches 34 | . . . . . . 1 1 9 2 8 . . . 2 . . 11 . Drone Recoveries 29 | . . . . . . 1 1 8 . 7 . . . 1 . . 11 . Exploration | -11 -10 -10 -10 -9 -8 -8 -7 -7 -6 -6 -6 -6 -6 -6 -5 -5 -5 -5 ------------- Run | Scr Mat Min Exi Min Mat Gar Fac Gar Fac Gar Fac Low Low Zio Pro Fac Gar Fac Turns Passed 23948 | 88 1177 854 739 121 833 770 139 1506 1688 2259 571 600 720 3910 1643 2607 2625 1098 Spaces Moved 12146 | 24 864 663 614 58 354 312 77 630 965 1323 374 451 544 1521 523 1360 1018 471 Core 1 | . . . . . . . . . . . . . . . . . 1 . Treads 473 | 24 69 45 1 58 1 53 . 41 20 6 . . . 128 3 . 21 3 Legs 3329 | . . . . . . . . . . 109 . . . 1045 520 1360 101 194 Wheels 8075 | . 795 618 613 . 353 259 77 589 945 1208 374 451 544 348 . . 627 274 Hover 260 | . . . . . . . . . . . . . . . . . 260 . Flight 8 | . . . . . . . . . . . . . . . . . 8 . Fastest Speed 100 | 160 110 110 110 200 130 140 140 140 120 110 110 110 100 100 210 120 106 116 Average Speed 143 | 160 115 114 118 200 136 153 140 155 122 120 110 110 107 176 210 145 195 141 Slowest Speed 1480 | 160 180 180 200 200 220 220 140 240 240 240 120 110 110 280 260 180 1480 220 Overloaded Moves . | . . . . . . . . . . . . . . . . . . . Propulsion Burnouts . | . . . . . . . . . . . . . . . . . . . Robots Hopped . | . . . . . . . . . . . . . . . . . . . Cave-ins Triggered . | . . . . . . . . . . . . . . . . . . . Exploration Rate (%) 53 | 3 98 98 93 24 33 52 2 72 31 92 9 66 76 90 59 22 86 9 Regions Visited 18 Branch Regions 7 Pre-discovered Areas 1 | . . . . . . . . . . . . 1 . . . . . . Known Exits Taken 10 | . 1 . . . 1 . 1 . 1 . 1 1 1 1 1 1 . . Unknown Exits Taken 4 | 1 . 1 1 1 . . . . . . . . . . . . . . Scrap Searched 13 | . . 2 . . . . . . . . . 2 2 4 3 . . . Spaces Dug 156 | . . 7 . . 7 . 5 . 47 29 3 . . . 26 26 3 3 Terrain Destroyed 992 | . . 68 . . 15 2 5 156 102 172 3 1 6 66 102 135 31 128 Melee 17 | . . . . . . . . . . . 3 . . . 5 7 2 . Projectile 141 | . . 2 . . 9 2 5 2 37 11 . 1 3 1 31 28 5 4 AOE 834 | . . 66 . . 6 . . 154 65 161 . . 3 65 66 100 24 124 Terrain Rammed . | . . . . . . . . . . . . . . . . . . . Walls Destroyed . | . . . . . . . . . . . . . . . . . . . Machines Disabled . | . . . . . . . . . . . . . . . . . . . Actions | -11 -10 -10 -10 -9 -8 -8 -7 -7 -6 -6 -6 -6 -6 -6 -5 -5 -5 -5 --------- Run | Scr Mat Min Exi Min Mat Gar Fac Gar Fac Gar Fac Low Low Zio Pro Fac Gar Fac Total 17063 | 46 956 736 627 64 660 574 103 1079 1355 1822 515 543 642 2267 1016 1818 1480 760 Wait 2685 | . 8 53 3 6 240 212 18 340 174 254 80 70 43 204 421 250 243 66 Move 12124 | 23 863 662 613 57 353 310 76 628 964 1321 373 450 543 1520 522 1359 1016 471 Hop . | . . . . . . . . . . . . . . . . . . . Pick Up 215 | . 16 2 3 1 11 6 2 5 22 19 7 2 6 36 6 23 26 22 Fast Attach 112 | 1 . 1 1 . 2 . . 2 9 15 10 . 4 31 1 7 16 12 Attach 132 | 2 . . . . 4 2 2 2 12 13 3 1 2 32 2 13 19 23 Detach 49 | . . . . . 1 1 . 1 6 8 1 . . 17 . 1 7 6 Swap 295 | . 4 2 2 . 20 1 . 12 36 40 16 7 15 32 15 33 26 34 Drop 231 | 4 12 3 5 . 7 6 . 7 33 20 14 1 8 42 9 24 18 18 Fire 1133 | 16 53 13 . . 22 34 5 77 99 109 7 12 17 350 35 85 92 107 Melee 59 | . . . . . . . . . . 7 4 . 4 3 5 23 12 1 Ram . | . . . . . . . . . . . . . . . . . . . Kick . | . . . . . . . . . . . . . . . . . . . Crush . | . . . . . . . . . . . . . . . . . . . Escape Stasis 28 | . . . . . . 2 . 5 . 16 . . . . . . 5 . Rewire . | . . . . . . . . . . . . . . . . . . . Trap . | . . . . . . . . . . . . . . . . . . . Miscellaneous . | . . . . . . . . . . . . . . . . . . . Route ------- -11/Scrapyard -10/Materials (discovered 5 exits: [*Mat x3] / *Min x2) -10/Mines (discovered 3 exits: [*Mat x2] / *Exi) -10/Exiles (discovered 2 exits: [*Min x2]) -9/Mines -8/Materials (discovered 2 exits: Fac / Gar) -8/Garrison -7/Factory -7/Garrison -6/Factory (discovered 2 exits: *Fac / Gar) -6/Garrison (discovered 3 exits: *Fac x3) -6/Factory (discovered 2 exits: *Low x2) -6/Lower Caves -6/Lower Caves (discovered 2 exits: *Fac / *Zio) -6/Zion (discovered 2 exits: *Dee / *Pro) -5/Proximity Caves -5/Factory (discovered 3 exits: *Fac / *Upp / Gar) -5/Garrison (discovered 3 exits: *Fac x3) -5/Factory History --------- Turn | Location | Event 42 | -11/Scrapyard | Discovered new exit (range 1) 89 | -11/Scrapyard | Entered Materials 151 | -10/Materials | Discovered new exit (range 8) 268 | -10/Materials | Discovered new exit (range 14) 304 | -10/Materials | Build established: Mutant 504 | -10/Materials | Identified exit to Mines 525 | -10/Materials | Discovered new exit (range 16) 890 | -10/Materials | Discovered new exit (range 8) 1266 | -10/Materials | Entered Mines 1395 | -10/Mines | Found the Drone Emporium 1405 | -10/Mines | Found Prototype Device 1462 | -10/Mines | Found a damaged Exp. Sensor Array with a note attached 1465 | -10/Mines | Found Prototype Device 1475 | -10/Mines | Discovered new exit (range 10) 1621 | -10/Mines | Assisted by bots powering up and referring to "LRC-V3" 1786 | -10/Mines | Discovered new exit (range 5) 1807 | -10/Mines | Learned 8 Materials zone layouts 2090 | -10/Mines | Deemed a non-threat by the Exiles lab entrance 2090 | -10/Mines | Discovered new exit (range 5) 2120 | -10/Mines | Entered Exiles 2120 | -10/Exiles | Accompanied by 4 allies 2136 | -10/Exiles | Discovered new exit (range 15) 2170 | -10/Exiles | Met 8R-AWN 2186 | -10/Exiles | Met EX-HEX 2253 | -10/Exiles | Met EX-DEC 2273 | -10/Exiles | Visited The Gauntlet 2480 | -10/Exiles | Discovered new exit (range 10) 2605 | -10/Exiles | Met EX-BIN 2692 | -10/Exiles | Aligned with FarCom system 2693 | -10/Exiles | Given EX-Vault access code 2721 | -10/Exiles | Opened EX-Vault 2731 | -10/Exiles | Found Gui. Plasma Cannon 2734 | -10/Exiles | Found Superbattery 2741 | -10/Exiles | Found Field Lobotomy Kit 2768 | -10/Exiles | Warned to stay clear of 0b10 Research branches 2859 | -10/Exiles | Stole three prototypes: Superbattery, Gui. Plasma Cannon, Field Lobotomy Kit 2859 | -10/Exiles | Entered Mines 2859 | -9/Mines | Accompanied by 3 allies 2866 | -9/Mines | Received a Rocket Launcher from a helpful Derelict 2923 | -9/Mines | Learned Materials interactive machine intel 2967 | -9/Mines | Discovered new exit (range 7) 2980 | -9/Mines | Entered Materials 2980 | -8/Materials | Accompanied by 3 allies 2980 | -8/Materials | Evolved 4 slots: Utility x4 2981 | -8/Materials | Identified exit to Factory 2981 | -8/Materials | Identified Decoy Drone Bay 2982 | -8/Materials | Loaded intel: 19 interactive machine locations 2982 | -8/Materials | Identified Exp. Sensor Array 3045 | -8/Materials | Repaired Grenade Launcher 3072 | -8/Materials | Repaired Mining Laser 3810 | -8/Materials | Identified exit to Garrison 3813 | -8/Materials | Entered Garrison 3824 | -8/Garrison | Installed Relay Interface Framework 3869 | -8/Garrison | Discovered exit to Factory (range 47) 3886 | -8/Garrison | Triggered checkpoint 4050 | -8/Garrison | Triggered checkpoint 4108 | -8/Garrison | Garrison Relay disabled 4178 | -8/Garrison | Triggered checkpoint 4583 | -8/Garrison | Entered Factory 4583 | -7/Factory | Evolved 2 slots: Utility x2 4585 | -7/Factory | FarCom data flow suspended 4720 | -7/Factory | Identified exit to Garrison 4722 | -7/Factory | Entered Garrison 4792 | -7/Garrison | Phase Generator disabled 4998 | -7/Garrison | Triggered checkpoint 5113 | -7/Garrison | Garrison Relay disabled 5301 | -7/Garrison | Triggered checkpoint 5440 | -7/Garrison | Triggered checkpoint 5511 | -7/Garrison | Triggered checkpoint 5734 | -7/Garrison | Discovered new exit (range 5) 5751 | -7/Garrison | Expanded RIF knowledge: Hotswap 5905 | -7/Garrison | Triggered checkpoint 5956 | -7/Garrison | Garrison Relay disabled 6228 | -7/Garrison | Entered Factory 6228 | -6/Factory | Evolved 2 slots: Propulsion x1, Utility x1 6288 | -6/Factory | Build established: Scavenger-Mutant 6649 | -6/Factory | Build established: Mutant 7039 | -6/Factory | Found Prototype Processor 7039 | -6/Factory | Identified Exp. Signal Interpreter 7093 | -6/Factory | Discovered new exit (range 13) 7596 | -6/Factory | Assimilated P-60 Hacker with FLK Orb 7628 | -6/Factory | First assault squad dispatched 7798 | -6/Factory | Assimilated P-60 Hacker with FLK Orb 7915 | -6/Factory | Identified exit to Garrison 7916 | -6/Factory | Entered Garrison 7916 | -6/Garrison | Accompanied by 2 allies 8076 | -6/Garrison | Triggered checkpoint 8134 | -6/Garrison | Triggered checkpoint 8278 | -6/Garrison | Triggered checkpoint 8439 | -6/Garrison | Garrison Relay disabled 8521 | -6/Garrison | Discovered new exit (range 17) 8569 | -6/Garrison | Identified exit to Factory 8629 | -6/Garrison | Triggered checkpoint 8883 | -6/Garrison | Triggered checkpoint 8922 | -6/Garrison | Garrison Relay disabled 9317 | -6/Garrison | Phase Generator disabled 9337 | -6/Garrison | Build established: Scavenger-Mutant 9373 | -6/Garrison | Triggered checkpoint 9427 | -6/Garrison | Discovered exit to Factory (range 39) 9680 | -6/Garrison | Triggered checkpoint 9714 | -6/Garrison | Garrison Relay disabled 9829 | -6/Garrison | Discovered exit to Factory (range 15) 9851 | -6/Garrison | Expanded RIF knowledge: Program Shield 10175 | -6/Garrison | Entered Factory 10198 | -6/Factory | Build established: Bothacker-Mutant 10397 | -6/Factory | Discovered new exit (range 8) 10420 | -6/Factory | Identified exit to Lower Caves 10428 | -6/Factory | Lost 4 parts (4u) 10518 | -6/Factory | Assimilated P-60 Hacker with FLK Orb 10746 | -6/Factory | Entered Lower Caves 10746 | -6/Lower Caves | Accompanied by 1 ally 10812 | -6/Lower Caves | Attracted the attention of an 0b10 outpost 11144 | -6/Lower Caves | Attracted the attention of an 0b10 checkpoint 11319 | -6/Lower Caves | Discovered new exit (range 12) 11331 | -6/Lower Caves | Identified exit to Lower Caves 11346 | -6/Lower Caves | Entered another Lower Caves area 11346 | -6/Lower Caves | Accompanied by 5 allies 11442 | -6/Lower Caves | Learned Factory trap positions 11442 | -6/Lower Caves | Discovered new exit (range 6) 11454 | -6/Lower Caves | Learned Factory stockpile data 11468 | -6/Lower Caves | Identified exit to Factory 11563 | -6/Lower Caves | Identified exit to Zion 11755 | -6/Lower Caves | Attracted the attention of an 0b10 checkpoint 11863 | -6/Lower Caves | Spotted DT-08A(f) 11864 | -6/Lower Caves | Encountered a Master Thief 11865 | -6/Lower Caves | Spotted ND-4O4(f) 11865 | -6/Lower Caves | Field Lobotomy Kit stolen by Master Thief 11866 | -6/Lower Caves | Encountered a Master Thief 11869 | -6/Lower Caves | Destroyed ND-4O4(f) 11869 | -6/Lower Caves | Spotted 47-20Q(f) 11870 | -6/Lower Caves | Encountered a Master Thief 11870 | -6/Lower Caves | Spotted SB-0JP(f) 11870 | -6/Lower Caves | Superbattery stolen by Master Thief 11871 | -6/Lower Caves | Encountered a Master Thief 11875 | -6/Lower Caves | Destroyed SB-0JP(f) 11932 | -6/Lower Caves | Encountered a Warlord checkpoint 12066 | -6/Lower Caves | Entered Zion 12066 | -6/Zion | Accompanied by 3 allies 12161 | -6/Zion | Discovered new exit (range 18) 12170 | -6/Zion | Given A8's code to call for help 12186 | -6/Zion | Identified exit to Proximity Caves 12229 | -6/Zion | System corruption cleaned by Quarantine Array 12233 | -6/Zion | RIF detected upon attempting to enter Zion 12233 | -6/Zion | Attacked by Zionites 12233 | -6/Zion | Spotted F1-9SA(B) 12233 | -6/Zion | Spotted QN-6UW(B) 12245 | -6/Zion | Destroyed QN-6UW(B) 12261 | -6/Zion | Allies destroyed F1-9SA(B) 12597 | -6/Zion | Destroyed Imprinter 12608 | -6/Zion | Extracted access codes from Imprinter's data core 12706 | -6/Zion | Lost 6 parts (1n2u3w) 13062 | -6/Zion | Build established: Scavenger-Assassin 13381 | -6/Zion | Found Prototype Launcher 13381 | -6/Zion | Identified Rocket Array 13403 | -6/Zion | Build established: Scavenger-Mutant 13519 | -6/Zion | Opened final containment barrier to the Deep Caves 13542 | -6/Zion | Discovered new exit (range 5) 13546 | -6/Zion | Saw the warning signs outside the Deep Caves entrance 13549 | -6/Zion | Identified exit to Deep Caves 13691 | -6/Zion | System corruption reached 10% 13865 | -6/Zion | Core integrity fell below 50% 14000 | -6/Zion | Lost 6 parts (1p1n3u1w) 14077 | -6/Zion | Lost 3 parts (3u) 15402 | -6/Zion | Learned 4 Factory zone layouts 15976 | -6/Zion | Entered Proximity Caves 16267 | -5/Proximity Caves | Build established: Scavenger-Skirmisher 16685 | -5/Proximity Caves | Build established: Scavenger-Assassin 16882 | -5/Proximity Caves | Spotted B-75 Beast 17596 | -5/Proximity Caves | Discovered exit to Factory (range 9) 17619 | -5/Proximity Caves | Entered Factory 17619 | -5/Factory | Evolved 2 slots: Propulsion x1, Utility x1 17621 | -5/Factory | Loaded intel: 82 trap records 18388 | -5/Factory | Build established: Scavenger-Mutant 19107 | -5/Factory | Lost 4 parts (4u) 19169 | -5/Factory | Destroyed 8 combat bots 19492 | -5/Factory | Discovered new exit (range 3) 19515 | -5/Factory | Identified exit to Factory 19726 | -5/Factory | Build established: Hauler-Mutant 20025 | -5/Factory | Discovered new exit (range 2) 20041 | -5/Factory | Identified exit to Upper Caves 20222 | -5/Factory | Identified exit to Garrison 20226 | -5/Factory | Entered Garrison 20226 | -5/Garrison | Accompanied by 1 ally 20366 | -5/Garrison | Triggered checkpoint 20513 | -5/Garrison | System corruption reached 10% 20538 | -5/Garrison | Triggered checkpoint 20602 | -5/Garrison | Lost 6 parts (2n2u2w) 20727 | -5/Garrison | Lost 4 parts (1p2n1u) 20852 | -5/Garrison | Build established: Scavenger-Mutant 20866 | -5/Garrison | Garrison Relay disabled 21249 | -5/Garrison | Discovered new exit (range 5) 21263 | -5/Garrison | Identified exit to Factory 21715 | -5/Garrison | Discovered exit to Factory (range 55) 21785 | -5/Garrison | Discovered exit to Factory (range 60) 21816 | -5/Garrison | Triggered checkpoint 21864 | -5/Garrison | Triggered checkpoint 21864 | -5/Garrison | Triggered checkpoint 21885 | -5/Garrison | Core integrity fell below 50% 21933 | -5/Garrison | Destroyed 9 combat bots 21935 | -5/Garrison | Lost 11 parts (1p3n4u3w) 22294 | -5/Garrison | Expanded RIF knowledge: Command Fork 22851 | -5/Garrison | Entered Factory 22902 | -5/Factory | Spotted B-75 Beast 22921 | -5/Factory | Destroyed B-75 Beast 23151 | -5/Factory | First assault squad dispatched 23365 | -5/Factory | Lost 6 parts (1n3u2w) 23629 | -5/Factory | Lost 3 parts (1p1u1w) 23644 | -5/Factory | Found Prototype Launcher 23660 | -5/Factory | Identified Tesla Bomb Launcher 23692 | -5/Factory | Lost 3 parts (1n1u1w) 23798 | -5/Factory | Core integrity fell below 20% 23949 | -5/Factory | Destroyed by P-70 Sage with Tesla Rifle Last Messages --------------- 23937_ U-05 Engineer lays Concrete. 23939_ U-05 Engineer builds a Wall. 23939_ Power Amplifier destroyed. 23940_ Slug penetrates P-70 Sage. 23940_ P-70 Sage destroyed. 23940_ Switching to secondary target: P-70 Sage. 23940_ Slug penetrates P-70 Sage. 23941_ U-05 Engineer builds a Wall. 23943_ Slug penetrates P-70 Sage. 23944_ U-05 Engineer lays Concrete. 23945_ Slug penetrates P-70 Sage. 23945_ System corrupted: Gauss Rifle targeting data glitched. 23945_ Slug penetrates P-70 Sage. 23946_ DW0K578ODPJFP:W>S>JH>7FAOBCYCAT&XKB 23947_ U-05 Engineer lays Concrete. 23948_ Slug penetrates P-70 Sage. 23948_ U-05 Engineer lays Concrete. 23948_ Penetrated by Slug. 23948_ Mak. System Shield destroyed. 23949_ Gauss Rifle destroyed. Map ----- +----------------------------------------------------+ | # #! "" "="""" """" # #? | | # ""T"" #* """" """" """" # #? | | # """"" #% """" """" """" # #? | | # # """" """" """" # #? | | ######### """" """" """? # #? | | ?? ??# """" """??"??? # #? | | ? """ ?# """" """" "?????#########? | | # """ ?# ????????????? | | # """ # """" """" ??????????????? | | # # """" ""??????????????????? | | # """ + """" """?????????????????? | | # """ #" """" """"???? ???????????? | | # R" #" """" """" !! ??????????? | | # """?#" """" """" ! ?????????? | | # "" ?#T "" " """" !%=?????????? | | ?? ??#" #????????? | | ???###??#" +????????? | | ????????#" =% #????????? | | ????????# #????????? | | ????????# #????????? | | ??????### %######### #????????? | | ??????# ==p=#????####+#######????? | | ??????# **%#???? #????? | | ??????# ===[#??? #????? | | ??????# [%%*#### #????? | | ??????# @%= * + #????? | | ??????# =#### #????? | | ??????# #??? #????? | | ??????# #???? #????? | | ??????# #???? #????? | | ######## ##????? #????? | | # # #?????? #????? | | # # #??????? #????? | | # "" # #??????? ?????? | | # "" +*%= #????????########?????? | | # """ # #?????????????????????? | | # """ # #?????????????????????? | | # """ # =#?????????????????????? | | # # #?????????????????????? | | # #######h#?????????????????????? | | # # #u#######???????????????? | | # " "" # = = #???????????????? | | # "R"" # =# ##### #???????????????? | | # """ # #[#?????????????????????? | | # # /[#?????????????????????? | | ######## "" ###?????????????????????? | | ???????# #???????????????????????? | | ???????#######???????????????????????? | | ?????????????????????????????????????? | | ?????????????????????????????????????? | +----------------------------------------------------+ Best States ------------- Heat Dissipation 78 Coolant Potential 65 Energy Generation 26 Energy Capacity 2300 Matter Stores 367 Matter Capacity 550 Sight Range 22 Robot Scan Range 30 Terrain Scan Range 20 Terrain Scan Density 85 ECM Strength 3 Jamming Range 14 Cloak Strength 3 Power Amplification 20 Base Temperature (-) 150 Armor Coverage 825 Resistance: KI 30 Resistance: EM 25 Thermal Conversion 30 Weapon Cycling 20 Evasion (%) 40 Targeting Accuracy 5 Launcher Accuracy 30 Target Analysis 6 Recoil Reduction 1 Matter Filtering 30 Energy Filtering 30 Particle Charging 20 Kinecelleration 40 Offensive Hacking 14 Defensive Hacking 11 Relay Coupler Types 67 Relay Coupler Value 3 Item Schematics ----------------- Imp. Kinecellerator | -5/Factory | Scanalyzed Imp. Heat Sink | -5/Factory | Scanalyzed Mak. Cloaking Device | -5/Factory | Scanalyzed Robot Schematics ------------------ None Fabricated ------------ Nothing Alien Tech Used ----------------- None Achievements -------------- None Challenges ------------ None Game ------ Seed ShockSurgeClaws Manual? 0 Play Time 11:01:18 Cumulative 149.3 hours Start 2021.08.10 @ 16:32:05 End 2021.08.13 @ 16:04:21 Sessions 9 Manual Loads 0 Difficulty Rogue Special Mode None Game No. 51 Rogue 48 Adventurer 0 Explorer 3 Win Type - Total 2 Types 2/0/0/0/0/0/0/0/0 Lore% 42 Gallery% 60 Achievement% 40 Wizard Run 0 Options --------- ASCII 0 Keyboard 0 Movement Numpad Keybinds 0 Fullscreen 1 Font 18/SmallcapsGlow Map View 76x50 Tactical HUD 1 Map Filters NONE Filters NONE Steam 1 RUN: 20e565a1-4565-463d-a1b2-74b93417a59a